bitfinex/quotes_BTCUSD_20220303
["timestamp","ask_amount","ask_price","bid_price","bid_amount"]
[1646305894562,0.075,43443.0,43441.0,0.21057512]
[1646305894563,0.05,43443.0,43441.0,0.21057512]
[1646305894762,0.22551023,43449.0,43441.0,0.21057512]
[1646305895060,0.03547,43449.0,43441.0,0.25667512]
[1646305895261,0.01047,43449.0,43441.0,0.25667512]
[1646305895458,0.355207,43451.0,43441.0,0.25684438]
[1646305895666,0.01044,43450.0,43441.0,0.25684438]
[1646305895861,0.01044,43450.0,43442.0,0.06143143]
[1646305896062,0.01056,43455.0,43448.0,0.28872812]
[1646305896259,0.03556,43455.0,43448.0,0.28872812]
[1646305896667,0.03556,43455.0,43447.0,0.0461]
[1646305897719,0.2756096,43455.0,43447.0,0.0461]
[1646305897917,0.03556,43455.0,43447.0,0.0461]
[1646305899119,0.03556,43455.0,43449.0,0.25562383]
[1646305899320,0.03556,43455.0,43447.0,0.0461]
[1646305899521,0.093138,43455.0,43447.0,0.0461]
[1646305900121,0.15992323,43455.0,43447.0,0.0461]
[1646305900419,0.27583987,43450.0,43447.0,0.0461]
[1646305901024,0.355207,43449.0,43447.0,0.0461]
[1646305901221,0.27583987,43450.0,43447.0,0.0461]
[1646305901664,0.3,43449.0,43441.0,0.00016948]
[1646305902463,0.3,43449.0,43440.0,0.2]
[1646305902662,0.3,43449.0,43441.0,0.00016947]
[1646305902865,0.27583987,43450.0,43441.0,0.0616009]
[1646305903063,0.30083987,43450.0,43441.0,0.00016947]
[1646305903265,0.40083987,43450.0,43441.0,0.00016947]
[1646305903666,0.40083987,43450.0,43440.0,0.2]
[1646305903862,0.40083987,43450.0,43441.0,0.00016947]
[1646305904064,0.355207,43449.0,43441.0,0.00016947]
[1646305904265,0.355207,43447.0,43441.0,0.00016947]
[1646305904865,0.355207,43447.0,43440.0,0.2]
[1646305905095,0.355207,43442.0,43441.0,0.00016947]
[1646305906102,0.355207,43447.0,43440.0,0.2]
[1646305906298,0.355207,43443.0,43440.0,0.2]
[1646305906697,0.412801,43443.0,43440.0,0.2]
[1646305907099,0.057594,43443.0,43440.0,0.2]
[1646305908500,0.060594,43443.0,43440.0,0.2]
[1646305908702,0.355207,43442.0,43440.0,0.2]
[1646305909259,0.59094868,43441.0,43440.0,0.2]
[1646305909464,0.99094868,43441.0,43440.0,0.2]
[1646305910458,1.05155268,43441.0,43440.0,0.2]
[1646305911058,1.05155268,43441.0,43440.0,0.19845565]
[1646305911660,1.75355268,43441.0,43440.0,0.19845565]
[1646305912461,1.75655268,43441.0,43440.0,0.19845565]
[1646305913096,1.75655268,43441.0,43440.0,0.19800115]
[1646305913697,1.75355268,43441.0,43440.0,0.19800115]
[1646305914096,1.04855268,43441.0,43440.0,0.19800115]
[1646305914298,1.75355268,43441.0,43440.0,0.19800115]
[1646305915197,1.04855268,43441.0,43440.0,0.19800115]
[1646305915799,0.99094868,43441.0,43440.0,0.19800115]
[1646305916458,0.355207,43441.0,43440.0,0.19800115]
[1646305916649,0.025,43445.0,43440.0,0.19800115]
[1646305916850,0.355207,43444.0,43440.0,0.19800115]
[1646305917048,0.003,43446.0,43440.0,0.19800115]
[1646305917248,0.355207,43445.0,43440.0,0.19800115]
[1646305917649,0.28189328,43442.0,43440.0,0.19800115]
[1646305918148,0.355207,43441.0,43440.0,0.19800115]
[1646305920317,0.755207,43441.0,43440.0,0.19800115]
[1646305920715,0.8083356,43441.0,43440.0,0.19800115]
[1646305920921,1.5133356,43441.0,43440.0,0.19800115]
[1646305921116,0.8083356,43441.0,43440.0,0.19800115]
[1646305922317,0.8083356,43441.0,43440.0,0.17820104]
[1646305922918,0.755207,43441.0,43440.0,0.17820104]
[1646305924166,0.82694552,43441.0,43440.0,0.17820104]
[1646305924964,0.755207,43441.0,43440.0,0.17820104]
[1646305926163,1.460207,43441.0,43440.0,0.17820104]
[1646305926964,0.455207,43441.0,43440.0,0.17820104]
[1646305929204,1.460207,43441.0,43440.0,0.17820104]
[1646305929406,1.57733215,43441.0,43440.0,0.17820104]
[1646305929602,1.72831471,43441.0,43440.0,0.17820104]
[1646305930003,1.75221981,43441.0,43440.0,0.17820104]
[1646305930203,1.93482949,43441.0,43440.0,0.17820104]
[1646305930404,1.93782949,43441.0,43440.0,0.17820104]
[1646305931459,1.93782949,43441.0,43438.0,0.00016836]
[1646305931460,1.0,43440.0,43438.0,0.00016836]
[1646305931657,1.0,43440.0,43424.0,0.4846]
[1646305931658,1.0,43438.0,43424.0,0.47753696]
[1646305931857,0.057615,43432.0,43421.0,0.57363143]
[1646305932060,0.3,43431.0,43421.0,0.06143143]
[1646305932259,0.06987796,43429.0,43421.0,0.06143143]
[1646305932560,0.4,43431.0,43416.0,0.4726]
[1646305932561,0.45976983,43431.0,43418.0,0.06143143]
[1646305932760,0.45976983,43431.0,43416.0,0.70923812]
[1646305932761,0.705,43430.0,43416.0,0.70923812]
[1646305932958,0.705,43430.0,43416.0,0.23663812]
[1646305933258,0.17343504,43427.0,43416.0,0.23663812]
[1646305933460,0.17343504,43427.0,43416.0,0.29806955]
[1646305933759,0.26435514,43424.0,43416.0,0.23663812]
[1646305933958,0.17343504,43427.0,43419.0,0.00016852]
[1646305934158,0.025,43424.0,43419.0,0.00016852]
[1646305934360,0.355207,43422.0,43419.0,0.00016852]
[1646305934566,0.082618,43424.0,43419.0,0.00016852]
[1646305934759,0.355207,43423.0,43419.0,0.00016852]
[1646305934961,0.355207,43423.0,43413.0,0.15521562]
[1646305935207,0.082618,43424.0,43419.0,0.00016852]
[1646305935613,0.355207,43422.0,43419.0,0.00016852]
[1646305935806,0.355207,43423.0,43419.0,0.00016852]
[1646305936006,0.082618,43424.0,43419.0,0.00016852]
[1646305936206,0.182618,43424.0,43416.0,0.06143143]
[1646305936406,0.182618,43424.0,43411.0,0.0215]
[1646305936407,0.415832,43423.0,43419.0,0.00016852]
[1646305936606,0.355207,43421.0,43419.0,0.00016852]
[1646305937212,0.4,43420.0,43419.0,0.00016852]
[1646305937409,0.47047,43419.0,43411.0,0.01]
[1646305937612,0.437839,43419.0,43418.0,0.0001682]
[1646305937807,0.737839,43419.0,43418.0,0.0001682]
[1646305938008,0.680207,43419.0,43418.0,0.0001682]
[1646305938507,0.680207,43419.0,43411.0,0.01]
[1646305938709,0.057629,43418.0,43416.0,0.00016821]
[1646305938964,0.355207,43417.0,43416.0,0.00016821]
[1646305939364,0.455207,43417.0,43416.0,0.00016821]
[1646305939768,0.455207,43417.0,43411.0,0.01]
[1646305939967,0.355207,43415.0,43414.0,0.00016821]
[1646305940566,0.358207,43415.0,43414.0,0.00016821]
[1646305940968,0.358207,43415.0,43411.0,0.01]
[1646305941169,0.358207,43415.0,43412.0,0.00016825]
[1646305941771,0.003,43415.0,43412.0,0.00016825]
[1646305941971,0.358207,43415.0,43414.0,0.19157866]
[1646305942169,0.003,43415.0,43414.0,0.19157866]
[1646305942371,0.003,43415.0,43413.0,0.06143143]
[1646305943100,0.355207,43414.0,43413.0,0.06143143]
[1646305943301,0.003,43415.0,43414.0,0.15563768]
[1646305943500,0.358209,43415.0,43414.0,0.15563768]
[1646305943901,0.355209,43415.0,43414.0,0.15563768]
[1646305944402,0.025,43419.0,43414.0,0.15563768]
[1646305944601,0.01203479,43425.0,43414.0,0.15563768]
[1646305944602,0.003,43420.0,43414.0,0.15563768]
[1646305945400,0.003,43420.0,43418.0,0.17258481]
[1646305945603,0.003,43420.0,43414.0,0.15563768]
[1646305945804,0.2361908,43425.0,43414.0,0.15563768]
[1646305946002,0.2361908,43425.0,43417.0,0.00016824]
[1646305946353,0.025,43425.0,43418.0,0.06143143]
[1646305946560,0.355209,43424.0,43418.0,0.06143143]
[1646305947054,0.355209,43424.0,43419.0,0.00016823]
[1646305948057,0.355209,43424.0,43418.0,0.06143143]
[1646305948257,0.355209,43424.0,43419.0,0.00016823]
[1646305948456,0.355209,43423.0,43419.0,0.00016823]
[1646305949056,0.003,43424.0,43419.0,0.00016823]
[1646305949456,0.003,43424.0,43418.0,0.06143143]
[1646305949656,0.025,43425.0,43419.0,0.00016823]
[1646305949855,0.355209,43424.0,43419.0,0.00016823]
[1646305950304,0.025,43425.0,43419.0,0.00016823]
[1646305950706,0.025,43425.0,43422.0,0.06143143]
[1646305951208,0.01503399,43429.0,43424.0,0.16103976]
[1646305951209,0.003,43429.0,43424.0,0.16103976]
[1646305951409,0.003,43429.0,43419.0,1.95899948]
[1646305951410,0.003,43429.0,43425.0,0.27594442]
[1646305951604,0.025,43431.0,43427.0,0.23155545]
[1646305951806,0.025,43431.0,43425.0,0.27594442]
[1646305952006,0.025,43431.0,43425.0,0.27611264]
[1646305952608,0.029,43431.0,43425.0,0.06159965]
[1646305952909,0.029,43431.0,43425.0,0.06143143]
[1646305953110,0.029,43431.0,43426.0,0.24429114]
[1646305953707,0.025,43431.0,43426.0,0.24429114]
[1646305954155,0.025,43431.0,43426.0,0.24412292]
[1646305954452,0.025,43431.0,43426.0,0.24429114]
[1646305955456,0.025,43431.0,43426.0,0.24412292]
[1646305955652,0.025,43431.0,43428.0,0.06143143]
[1646305956651,0.004,43436.0,43429.0,0.355209]
[1646305956852,0.004,43436.0,43431.0,0.06143143]
[1646305957822,0.025,43438.0,43431.0,0.06143143]
[1646305958029,0.025,43438.0,43431.0,0.06159964]
[1646305958222,0.025,43438.0,43432.0,0.27559865]
[1646305958421,0.355209,43437.0,43431.0,0.06159964]
[1646305958723,0.025,43438.0,43431.0,0.00016821]
[1646305959023,0.08651103,43438.0,43424.0,0.24782174]
[1646305959224,0.08651103,43438.0,43432.0,0.00016821]
[1646305959225,0.655209,43437.0,43432.0,0.00016821]
[1646305959424,0.98997883,43437.0,43432.0,0.00016821]
[1646305959826,0.057608,43436.0,43432.0,0.00016821]
[1646305960222,0.057608,43436.0,43426.0,0.06143143]
[1646305960423,0.057608,43436.0,43432.0,0.00016821]
[1646305960624,0.061608,43436.0,43432.0,0.00016821]
[1646305961458,0.061608,43436.0,43426.0,0.06143143]
[1646305961657,0.061608,43436.0,43432.0,0.00016821]
[1646305961854,0.057608,43436.0,43432.0,0.00016821]
[1646305962352,1.3,43437.0,43432.0,0.00016821]
[1646305962552,0.004,43436.0,43427.0,0.22546838]
[1646305962754,0.004,43436.0,43432.0,0.00016949]
[1646305963855,1.0,43437.0,43428.0,0.06143143]
[1646305964053,1.0,43437.0,43432.0,0.00016949]
[1646305966119,1.0,43437.0,43431.0,0.06143143]
[1646305966318,1.0,43437.0,43432.0,0.00016919]
[1646305966518,1.003,43437.0,43432.0,0.00016919]
[1646305967319,1.003,43437.0,43427.0,0.28689981]
[1646305967519,0.25227552,43436.0,43432.0,0.00016919]
[1646305967719,1.0,43437.0,43432.0,9.056e-05]
[1646305968325,1.63476983,43437.0,43432.0,9.056e-05]
[1646305968522,0.15100119,43436.0,43427.0,0.06143143]
[1646305968724,0.48577102,43436.0,43427.0,0.06143143]
[1646305969386,0.355209,43430.0,43427.0,0.06143143]
[1646305969587,0.26131181,43431.0,43427.0,0.06143143]
[1646305969988,0.45100119,43434.0,43427.0,0.06143143]
[1646305970386,0.3,43434.0,43427.0,0.06143143]
[1646305970588,0.004,43431.0,43427.0,0.06143143]
[1646305970788,0.004,43431.0,43426.0,0.00016922]
[1646305970988,0.004,43431.0,43425.0,0.32254546]
[1646305971185,0.004,43431.0,43427.0,0.00016922]
[1646305971788,0.025,43433.0,43427.0,0.00016922]
[1646305972188,0.025,43433.0,43425.0,0.06143143]
[1646305972389,0.29640318,43433.0,43428.0,0.00016922]
[1646305972616,0.025,43433.0,43428.0,0.00016922]
[1646305973420,0.025,43433.0,43425.0,0.06143143]
[1646305973619,0.025,43433.0,43428.0,0.00016916]
[1646305973620,0.26440509,43432.0,43428.0,0.00016916]
[1646305973816,0.025,43433.0,43428.0,0.00016916]
[1646305974115,0.17600119,43433.0,43428.0,0.00016916]
[1646305974318,0.025,43433.0,43428.0,0.00016916]
[1646305974615,0.025,43433.0,43425.0,0.06143143]
[1646305974816,0.025,43433.0,43428.0,0.00016916]
[1646305975817,0.025,43433.0,43425.0,0.06143143]
[1646305976017,0.025,43433.0,43428.0,0.00016916]
[1646305976465,0.02869107,43433.0,43428.0,0.00016916]
[1646305976869,0.02869107,43433.0,43425.0,0.06143143]
[1646305977064,0.02869107,43433.0,43428.0,0.00016917]
[1646305977865,0.02469107,43433.0,43428.0,0.00016917]
[1646305978065,0.02469107,43433.0,43425.0,0.06143143]
[1646305978267,0.02469107,43433.0,43428.0,0.00016917]
[1646305978469,0.02869107,43433.0,43428.0,0.00016917]
[1646305979267,0.02869107,43433.0,43425.0,0.06143143]
[1646305979670,0.02869107,43433.0,43428.0,0.00016917]
[1646305979868,0.02469107,43433.0,43428.0,0.00016917]
[1646305980517,0.02769107,43433.0,43425.0,0.06143143]
[1646305980719,0.02769107,43433.0,43428.0,0.00016916]
[1646305982921,0.02769107,43433.0,43424.0,0.23032573]
[1646305983120,0.02769107,43433.0,43428.0,0.00016916]
[1646305983964,0.02469107,43433.0,43428.0,0.00016916]
[1646305984168,0.02469107,43433.0,43427.0,0.06143143]
[1646305984369,0.02469107,43433.0,43428.0,0.00016916]
[1646305985366,0.02469107,43433.0,43427.0,0.06143143]
[1646305985569,0.02469107,43433.0,43428.0,0.35537816]
[1646305986168,0.02469107,43433.0,43431.0,0.06143143]
[1646305986672,1.0,43437.0,43432.0,0.47123471]
[1646305986867,1.0,43437.0,43433.0,0.2768806]
[1646305987066,1.0,43437.0,43434.0,0.41664043]
[1646305987266,1.0,43437.0,43434.0,0.46274043]
[1646305987700,1.0,43437.0,43436.0,0.355209]
[1646305988904,1.0,43437.0,43434.0,0.10753143]
[1646305989104,1.0,43437.0,43434.0,0.0461]
[1646305989313,1.0,43437.0,43432.0,0.00016916]
[1646305990004,1.33476983,43437.0,43432.0,0.00016916]
[1646305990205,0.33476983,43436.0,43431.0,0.06143143]
[1646305990408,0.33476983,43436.0,43432.0,0.00016916]
[1646305990806,0.1,43435.0,43432.0,0.00016916]
[1646305991007,0.33476983,43434.0,43432.0,0.00016916]
[1646305991208,0.69238183,43433.0,43432.0,0.00016916]
[1646305991458,0.69238183,43433.0,43427.0,0.06143143]
[1646305991662,0.28666932,43431.0,43427.0,0.06143143]
[1646305991862,0.28666932,43431.0,43422.0,0.2639317]
[1646305992058,0.39237983,43432.0,43427.0,0.06143143]
[1646305992865,0.39237983,43432.0,43427.0,0.0616006]
[1646305993059,0.33476983,43432.0,43427.0,0.00016917]
[1646305993260,0.33476983,43432.0,43429.0,0.06143143]
[1646305993459,0.33476983,43433.0,43429.0,0.06143143]
[1646305993658,0.33476983,43432.0,43429.0,0.06143143]
[1646305993860,0.33476983,43431.0,43429.0,0.06143143]
[1646305994059,0.33476983,43431.0,43429.0,0.06160059]
[1646305994658,0.33776983,43431.0,43429.0,0.06160059]
[1646305994862,0.33776983,43431.0,43429.0,0.00016916]
[1646305995147,0.33776983,43431.0,43428.0,0.06143143]
[1646305995346,0.003,43431.0,43430.0,0.24111824]
[1646305995545,0.003,43431.0,43428.0,0.0616006]
[1646305995745,0.33476983,43434.0,43429.0,0.355209]
[1646305995941,0.33476983,43434.0,43431.0,0.06143143]
[1646305996743,0.33476983,43434.0,43433.0,0.27074571]
[1646305997344,0.33476983,43434.0,43433.0,0.62595471]
[1646305997544,0.33476983,43434.0,43433.0,0.92595471]
[1646305997745,0.025,43438.0,43433.0,0.61684571]
[1646305997746,0.33476983,43438.0,43433.0,0.61684571]
[1646305997945,0.33476983,43439.0,43438.0,0.54909285]
[1646305998146,0.33476983,43439.0,43438.0,0.84909285]
[1646305998353,0.33476983,43440.0,43438.0,0.54909285]
[1646305998544,0.33476983,43441.0,43440.0,0.355209]
[1646305998744,0.33476983,43441.0,43440.0,0.61000117]
[1646306001370,0.33476983,43442.0,43440.0,0.25479217]
[1646306001772,0.33476983,43442.0,43441.0,0.355209]
[1646306004013,0.33476983,43442.0,43440.0,0.25479217]
[1646306004416,0.33476983,43443.0,43439.0,0.06143143]
[1646306004616,0.28697334,43440.0,43435.0,0.355209]
[1646306004816,0.28697334,43440.0,43439.0,0.06143143]
[1646306005019,0.33476983,43441.0,43439.0,0.06136294]
[1646306005216,0.33476983,43440.0,43439.0,0.06136294]
[1646306005415,0.03109689,43440.0,43439.0,0.06136294]
[1646306006018,0.355209,43445.0,43439.0,0.06136294]
[1646306006218,0.197783,43447.0,43439.0,0.06136294]
[1646306006219,0.33483373,43440.0,43439.0,0.06136294]
[1646306006462,0.03109689,43440.0,43439.0,0.06136294]
[1646306006669,0.355209,43440.0,43432.0,0.00016917]
[1646306006964,0.355209,43433.0,43432.0,0.00016917]
[1646306007165,0.69007107,43433.0,43425.0,0.32406294]
[1646306007361,0.33486207,43433.0,43432.0,0.00016916]
[1646306007761,0.87626548,43433.0,43432.0,0.00016916]
[1646306008163,0.33486207,43433.0,43432.0,0.00016916]
[1646306008364,0.33487792,43433.0,43428.0,0.06136294]
[1646306008564,0.33487792,43432.0,43430.0,0.00016916]
[1646306008763,0.33487792,43433.0,43430.0,0.00016916]
[1646306008966,0.33487792,43432.0,43430.0,0.00016916]
[1646306009163,0.33487792,43433.0,43430.0,0.00016916]
[1646306009563,0.33487792,43433.0,43428.0,0.06136294]
[1646306009763,0.33487792,43433.0,43429.0,0.00016916]
[1646306010608,0.33487792,43433.0,43428.0,0.06136294]
[1646306010809,0.33487792,43433.0,43429.0,0.00016916]
[1646306011811,0.33487792,43433.0,43428.0,0.06136294]
[1646306012111,0.33487792,43433.0,43429.0,0.00016916]
[1646306012716,0.33987792,43433.0,43429.0,0.00016916]
[1646306013113,0.33987792,43433.0,43428.0,0.06136294]
[1646306013715,0.005,43433.0,43428.0,0.06136294]
[1646306013952,0.33487792,43434.0,43428.0,0.06136294]
[1646306014154,0.33487792,43434.0,43428.0,0.06119494]
[1646306014353,0.33487792,43434.0,43428.0,0.06091035]
[1646306014757,0.004,43434.0,43428.0,0.06091035]
[1646306015854,0.33487792,43435.0,43428.0,0.06091035]
[1646306016656,0.33987792,43435.0,43428.0,0.06091035]
[1646306016856,0.33987792,43435.0,43429.0,0.00018966]
[1646306017356,0.51336346,43435.0,43429.0,0.00018966]
[1646306017599,0.33987792,43435.0,43429.0,0.00018966]
[1646306017802,0.33987792,43435.0,43428.0,0.06091035]
[1646306018005,0.33987792,43435.0,43430.0,0.00018966]
[1646306018605,0.33887792,43435.0,43430.0,0.00018966]
[1646306019001,0.33887792,43435.0,43429.0,0.06091035]
[1646306019201,0.33887792,43435.0,43430.0,0.00018966]
[1646306020105,0.33487792,43435.0,43430.0,0.00018966]
[1646306020308,0.33487792,43435.0,43429.0,0.25966513]
[1646306020502,0.33487792,43435.0,43430.0,0.00018077]
[1646306020706,0.33887792,43435.0,43430.0,0.00018077]
[1646306021456,0.33887792,43435.0,43429.0,0.06091035]
[1646306021656,0.33487792,43434.0,43430.0,0.0001733]
[1646306021856,0.33487792,43434.0,43432.0,0.23160191]
[1646306022056,0.33487792,43434.0,43430.0,0.0001733]
[1646306022257,0.33487792,43434.0,43431.0,0.1882002]
[1646306022457,0.33487792,43434.0,43430.0,0.0001733]
[1646306022662,0.33487792,43434.0,43429.0,0.06091035]
[1646306022863,0.33487792,43434.0,43430.0,0.0001733]
[1646306023961,0.33487792,43434.0,43429.0,0.06091035]
[1646306024161,0.355209,43433.0,43430.0,0.00017415]
[1646306024360,0.33487792,43433.0,43430.0,0.00017415]
[1646306024962,0.33787792,43434.0,43430.0,0.00017415]
[1646306025206,0.33787792,43434.0,43429.0,0.0610781]
[1646306025810,0.33487792,43433.0,43429.0,0.0610781]
[1646306026206,0.33487792,43433.0,43429.0,0.06091035]
[1646306026406,0.33487792,43433.0,43429.0,0.0610781]
[1646306026609,0.33887792,43433.0,43429.0,0.0610781]
[1646306027508,0.33887792,43433.0,43429.0,0.06091035]
[1646306027711,0.54642968,43433.0,43429.0,0.06107826]
[1646306027910,0.33487792,43433.0,43429.0,0.06107826]
[1646306028409,0.33487792,43433.0,43429.0,0.00016791]
[1646306028611,0.057601,43435.0,43425.0,0.06091035]
[1646306028612,0.69008692,43432.0,43425.0,0.06091035]
[1646306028870,0.39248392,43431.0,43429.0,0.00016819]
[1646306029703,0.33487792,43430.0,43429.0,0.00016819]
[1646306029874,0.33487792,43430.0,43422.0,0.1177]
[1646306030073,0.33487792,43430.0,43428.0,0.00016819]
[1646306030475,0.39248392,43431.0,43428.0,0.00016819]
[1646306030671,0.005,43430.0,43428.0,0.00016819]
[1646306031273,0.005,43430.0,43427.0,0.00016817]
[1646306031873,0.39248392,43431.0,43427.0,0.00016817]
[1646306032275,0.39248392,43431.0,43422.0,0.33257152]
[1646306032479,0.39248392,43431.0,43427.0,0.00016815]
[1646306033420,0.33487792,43430.0,43427.0,0.00016815]
[1646306033622,0.33487792,43430.0,43422.0,0.33257152]
[1646306033819,0.33487792,43430.0,43427.0,0.00016815]
[1646306034920,0.33487792,43430.0,43426.0,0.00016868]
[1646306035725,0.33487792,43430.0,43426.0,5.079e-05]
[1646306035924,0.39248392,43431.0,43426.0,5.079e-05]
[1646306036125,0.39248392,43431.0,43426.0,0.06107956]
[1646306036378,0.025,43432.0,43431.0,0.355209]
[1646306036579,0.33487792,43436.0,43431.0,0.91799278]
[1646306036776,0.35987792,43437.0,43431.0,0.61799278]
[1646306036975,0.35987792,43437.0,43435.0,0.355209]
[1646306037580,0.35987792,43437.0,43434.0,0.06091035]
[1646306037780,0.33487792,43437.0,43435.0,0.355209]
[1646306038281,0.33487792,43437.0,43434.0,0.06091035]
[1646306039079,0.33487792,43437.0,43435.0,0.355209]
[1646306039479,0.33487792,43437.0,43434.0,0.06091035]
[1646306040728,0.34087792,43437.0,43434.0,0.06091035]
[1646306041526,0.34087792,43437.0,43435.0,0.355209]
[1646306041929,0.33487792,43437.0,43435.0,0.55383643]
[1646306042229,0.33487792,43437.0,43434.0,0.06091035]
[1646306042728,0.34087792,43437.0,43434.0,0.06091035]
[1646306043535,0.34087792,43437.0,43435.0,0.355209]
[1646306043732,0.34087792,43437.0,43434.0,0.06091035]
[1646306044162,0.33487792,43437.0,43434.0,0.06091035]
[1646306044770,0.34087792,43437.0,43434.0,0.06091035]
[1646306045164,0.34087792,43437.0,43433.0,0.06091035]
[1646306045366,0.33487792,43436.0,43433.0,0.06091035]
[1646306045565,0.34087792,43437.0,43434.0,0.355209]
[1646306045766,0.34087792,43437.0,43433.0,0.06091035]
[1646306045967,0.33487792,43437.0,43434.0,0.1774961]
[1646306046367,0.33487792,43437.0,43433.0,0.06091035]
[1646306046564,0.33487792,43437.0,43434.0,0.355209]
[1646306046765,0.33487792,43437.0,43433.0,0.06091035]
[1646306047366,0.33487792,43436.0,43433.0,0.06091035]
[1646306048815,0.34087792,43436.0,43433.0,0.06091035]
[1646306049215,0.34087792,43436.0,43429.0,0.21294777]
[1646306049415,0.33487792,43434.0,43429.0,0.21294777]
[1646306049813,0.33487792,43433.0,43429.0,0.21294777]
[1646306050412,0.33487792,43432.0,43430.0,0.355209]
[1646306050614,0.33487792,43432.0,43427.0,0.06091035]
[1646306050814,0.33487792,43431.0,43427.0,0.06091035]
[1646306051111,0.33487792,43431.0,43424.0,0.00017368]
[1646306051371,0.33487792,43429.0,43424.0,0.00017368]
[1646306051567,0.057602,43432.0,43424.0,0.00017368]
[1646306051568,0.33487792,43428.0,43424.0,0.00017368]
[1646306051768,0.33487792,43428.0,43423.0,0.06091035]
[1646306051970,0.2657389,43435.0,43424.0,0.00017367]
[1646306051971,0.33487792,43427.0,43424.0,0.00017367]
[1646306052868,0.33987792,43427.0,43423.0,0.06091035]
[1646306053069,0.33987792,43427.0,43423.0,0.06107846]
[1646306053971,0.33487792,43427.0,43423.0,0.06107846]
[1646306054169,0.33487792,43427.0,43423.0,0.06091035]
[1646306054373,0.33487792,43427.0,43423.0,0.06107846]
[1646306054569,0.21334871,43428.0,43423.0,0.06107846]
[1646306054570,0.39248892,43428.0,43423.0,0.06107846]
[1646306054770,0.002,43427.0,43423.0,0.06107846]
[1646306055417,0.002,43427.0,43423.0,0.06124657]
[1646306055621,0.002,43427.0,43423.0,0.06107846]
[1646306056019,0.39248892,43428.0,43423.0,0.06107846]
[1646306056422,0.33487792,43428.0,43423.0,0.06091035]
[1646306056623,0.33487792,43428.0,43423.0,0.06107889]
[1646306056818,0.33487792,43428.0,43424.0,0.355209]
[1646306057118,0.33487792,43430.0,43424.0,0.355209]
[1646306057321,0.33487792,43430.0,43424.0,0.3]
[1646306058018,0.33487792,43430.0,43424.0,0.30016854]
[1646306058220,0.33487792,43430.0,43425.0,0.355209]
[1646306058619,0.33487792,43430.0,43425.0,0.35514896]
[1646306058870,0.33487792,43430.0,43424.0,0.3]
[1646306059073,0.33487792,43430.0,43424.0,0.30016855]
[1646306060074,0.33487792,43430.0,43424.0,0.3]
[1646306060274,0.33487792,43430.0,43424.0,0.00018951]
[1646306061276,0.33487792,43430.0,43423.0,0.06091035]
[1646306061477,0.33487792,43429.0,43424.0,0.00018951]
[1646306061879,0.18235812,43433.0,43424.0,0.00018951]
[1646306061880,0.33487792,43428.0,43424.0,0.00018951]
[1646306062078,0.33487792,43427.0,43424.0,0.00018951]
[1646306062477,0.33487792,43427.0,43423.0,0.06091035]
[1646306062725,0.33887792,43427.0,43423.0,0.06109985]
[1646306063225,0.33887792,43427.0,43423.0,0.0001895]
[1646306063626,0.33887792,43427.0,43420.0,0.19446875]
[1646306063825,0.33487792,43426.0,43423.0,0.00018206]
[1646306064427,0.33487792,43427.0,43423.0,0.00018206]
[1646306064828,0.003,43426.0,43420.0,0.19446875]
[1646306065226,0.003,43426.0,43423.0,0.00018206]
[1646306066129,0.003,43426.0,43422.0,0.06091035]
[1646306066375,0.33487792,43427.0,43422.0,0.06109241]
[1646306067279,0.33487792,43427.0,43422.0,0.06091035]
[1646306067576,0.33487792,43427.0,43422.0,0.06109277]
[1646306067776,0.33487792,43428.0,43422.0,0.06109277]
[1646306068375,0.33487792,43429.0,43422.0,0.06091035]
[1646306068577,0.35987792,43429.0,43422.0,0.06091035]
[1646306068780,0.35987792,43429.0,43423.0,0.00018242]
[1646306069781,0.35987792,43429.0,43424.0,0.00018242]
[1646306070634,0.025,43429.0,43424.0,0.00018242]
[1646306070835,0.35987792,43430.0,43422.0,0.06091035]
[1646306071035,0.35987792,43430.0,43424.0,0.0001824]
[1646306072036,0.35987792,43430.0,43423.0,0.05759753]
[1646306072239,0.35987792,43430.0,43424.0,0.0001824]
[1646306073338,0.35987792,43430.0,43423.0,0.05759753]
[1646306073537,0.35987792,43430.0,43424.0,0.0001824]
[1646306074571,0.35987792,43430.0,43422.0,0.06091035]
[1646306074772,0.33456888,43429.0,43424.0,0.0001824]
[1646306075068,0.025,43430.0,43424.0,0.0001824]
[1646306075767,0.025,43430.0,43422.0,0.06091035]
[1646306075969,0.025,43430.0,43424.0,0.0001824]
[1646306076968,0.025,43430.0,43422.0,0.06091035]
[1646306077168,0.025,43430.0,43424.0,0.0001824]
[1646306078015,0.025,43430.0,43422.0,0.06091035]
[1646306078215,0.025,43430.0,43424.0,0.0001824]
[1646306079316,0.025,43430.0,43422.0,0.06091035]
[1646306079516,0.025,43430.0,43424.0,0.0001824]
[1646306080319,0.025,43430.0,43425.0,0.355183]
[1646306080517,0.28703503,43429.0,43426.0,0.655183]
[1646306080719,0.025,43430.0,43427.0,0.41609335]
[1646306080720,0.002,43430.0,43427.0,0.41609335]
[1646306081118,0.002,43430.0,43429.0,0.11602571]
[1646306081376,0.002,43430.0,43429.0,0.77120871]
[1646306081979,0.28703503,43432.0,43429.0,0.77120871]
[1646306082176,0.28703503,43433.0,43431.0,0.11602571]
[1646306082381,0.28703503,43433.0,43432.0,0.47120871]
[1646306082779,0.29303503,43433.0,43432.0,0.47120871]
[1646306083981,0.28703503,43433.0,43432.0,0.47120871]
[1646306084180,0.28703503,43433.0,43432.0,0.355183]
[1646306084480,0.28703503,43433.0,43430.0,0.355183]
[1646306084682,0.28703503,43433.0,43430.0,0.41609335]
[1646306084880,0.29303503,43433.0,43430.0,0.41609335]
[1646306085431,0.006,43433.0,43432.0,0.47120871]
[1646306086125,0.33484612,43435.0,43432.0,0.47120871]
[1646306086126,0.33484612,43435.0,43432.0,0.11602571]
[1646306086326,0.025,43437.0,43433.0,0.28916766]
[1646306086527,0.025,43437.0,43436.0,0.16070507]
[1646306086726,0.05710187,43437.0,43436.0,0.16070507]
[1646306086926,0.03210187,43437.0,43436.0,0.16070507]
[1646306088529,0.03210187,43437.0,43436.0,0.16052824]
[1646306092624,0.03210187,43437.0,43430.0,0.06091035]
[1646306092829,0.33486282,43436.0,43427.0,0.3]
[1646306093028,0.33486313,43436.0,43427.0,0.3]
[1646306093226,0.33486313,43436.0,43428.0,0.355183]
[1646306093423,0.33486313,43435.0,43434.0,0.16526908]
[1646306096873,0.33786313,43435.0,43434.0,0.16526908]
[1646306097072,0.33786313,43435.0,43429.0,0.20597583]
[1646306097375,0.33786313,43435.0,43431.0,0.06091035]